[Event "*** Titled Tuesday Blitz"]
[Site "Chess.com"]
[Date "2018.11.06"]
[Round "5"]
[White "OscarAng"]
[Black "GMSrinath"]
[Result "1-0"]
[WhiteElo "2183"]
[BlackElo "2806"]
[TimeControl "180+2"]
[EndTime "14:03:22 PST"]
[Termination "OscarAng won by resignation"]

1. e4 {[%clk 0:03:00]} 1... g6 {[%clk 0:02:57.6]} 2. d4 {[%clk 0:02:58.8]} 2...
Bg7 {[%clk 0:02:59.5]} 3. Nc3 {[%clk 0:02:58.2]} 3... d6 {[%clk 0:03:00.8]} 4.
Bg5 {[%clk 0:02:54.4]} 4... h6 {[%clk 0:03:00.7]} 5. Bh4 {[%clk 0:02:54.2]} 5...
a6 {[%clk 0:03:02.2]} 6. Qd2 {[%clk 0:02:50.3]} 6... b5 {[%clk 0:03:02.4]} 7. a3
{[%clk 0:02:49.1]} 7... Bb7 {[%clk 0:03:03.2]} 8. f4 {[%clk 0:02:47.9]} 8... Nd7
{[%clk 0:03:04]} 9. O-O-O {[%clk 0:02:47]} 9... Rc8 {[%clk 0:03:04.5]} 10. Kb1
{[%clk 0:02:40.3]} 10... c5 {[%clk 0:03:05.3]} 11. d5 {[%clk 0:02:36.9]} 11...
b4 {[%clk 0:03:01.4]} 12. axb4 {[%clk 0:02:32.7]} 12... cxb4 {[%clk 0:03:03.3]}
13. Nce2 {[%clk 0:02:34.3]} 13... a5 {[%clk 0:03:02.3]} 14. Nd4 {[%clk
0:02:32.1]} 14... Ngf6 {[%clk 0:03:03.7]} 15. Bxf6 {[%clk 0:02:30.1]} 15... Bxf6
{[%clk 0:03:02.4]} 16. h4 {[%clk 0:02:28.8]} 16... Nc5 {[%clk 0:03:00.9]} 17.
Bb5+ {[%clk 0:02:26.2]} 17... Kf8 {[%clk 0:03:02.4]} 18. Qe3 {[%clk 0:02:25]}
18... Qb6 {[%clk 0:03:02.4]} 19. e5 {[%clk 0:02:23.1]} 19... Bg7 {[%clk
0:03:00.1]} 20. Bc6 {[%clk 0:02:21.8]} 20... Bxc6 {[%clk 0:02:55.2]} 21. Nxc6
{[%clk 0:02:18.9]} 21... Na4 {[%clk 0:02:55.9]} 22. Qb3 {[%clk 0:02:16.8]} 22...
Qb5 {[%clk 0:02:54.9]} 23. Na7 {[%clk 0:02:15.1]} 23... Qb7 {[%clk 0:02:51.6]}
24. Nxc8 {[%clk 0:02:15.9]} 24... Nc5 {[%clk 0:02:53.3]} 25. exd6 {[%clk
0:02:03.4]} 25... Qxc8 {[%clk 0:02:40.6]} 26. dxe7+ {[%clk 0:01:59.3]} 26...
Kxe7 {[%clk 0:02:42.5]} 27. d6+ {[%clk 0:01:57.9]} 27... Kf8 {[%clk 0:02:43.7]}
28. Qh3 {[%clk 0:01:52.6]} 28... f5 {[%clk 0:02:41]} 29. Qe3 {[%clk 0:01:50.7]}
29... Ne4 {[%clk 0:02:34.2]} 30. d7 {[%clk 0:01:49.9]} 30... Qd8 {[%clk
0:02:35.4]} 31. Nf3 {[%clk 0:01:46.7]} 31... Kf7 {[%clk 0:02:35.9]} 32. Qb3+
{[%clk 0:01:43.9]} 32... Ke7 {[%clk 0:02:32.4]} 33. Nd2 {[%clk 0:01:39.8]} 33...
Nc5 {[%clk 0:02:15.2]} 34. Rhe1+ {[%clk 0:01:38]} 34... Kd6 {[%clk 0:02:16.7]}
35. Ne4+ {[%clk 0:01:36.1]} 35... Kc6 {[%clk 0:02:18.3]} 36. Qd5+ {[%clk
0:01:34.1]} 1-0

[Event "*** Titled Tuesday Blitz"]
[Site "Chess.com"]
[Date "2018.11.06"]
[Round "5"]
[White "kleinebeer98"]
[Black "ChainsOfFantasia"]
[Result "1-0"]
[WhiteElo "2603"]
[BlackElo "2353"]
[TimeControl "180+2"]
[EndTime "14:03:52 PST"]
[Termination "kleinebeer98 won by resignation"]

1. e4 {[%clk 0:03:01.9]} 1... e6 {[%clk 0:02:58.9]} 2. d4 {[%clk 0:03:02.3]}
2... d5 {[%clk 0:02:58.6]} 3. Bd3 {[%clk 0:03:03.7]} 3... dxe4 {[%clk
0:02:58.5]} 4. Bxe4 {[%clk 0:03:05.6]} 4... Nf6 {[%clk 0:02:59.1]} 5. Bf3 {[%clk
0:03:06]} 5... c5 {[%clk 0:03:00.3]} 6. Ne2 {[%clk 0:03:06.7]} 6... Nc6 {[%clk
0:03:01.5]} 7. Be3 {[%clk 0:03:06.4]} 7... e5 {[%clk 0:03:02.9]} 8. Bxc6+ {[%clk
0:02:55.7]} 8... bxc6 {[%clk 0:03:04.8]} 9. dxe5 {[%clk 0:02:57.5]} 9... Qxd1+
{[%clk 0:03:05.5]} 10. Kxd1 {[%clk 0:02:59.4]} 10... Ng4 {[%clk 0:03:07.1]} 11.
Nbc3 {[%clk 0:02:50.9]} 11... Nxe5 {[%clk 0:02:59.3]} 12. f3 {[%clk 0:02:35.2]}
12... Be7 {[%clk 0:02:56.8]} 13. Ne4 {[%clk 0:02:32.6]} 13... Nc4 {[%clk
0:02:49.2]} 14. Bxc5 {[%clk 0:02:22.2]} 14... Nxb2+ {[%clk 0:02:32.8]} 15. Kc1
{[%clk 0:02:16.7]} 15... Nc4 {[%clk 0:02:29.1]} 16. Re1 {[%clk 0:02:12.7]} 16...
f5 {[%clk 0:02:15.4]} 17. Nd4 {[%clk 0:02:09.3]} 17... Bh4 {[%clk 0:01:38.9]}
18. g3 {[%clk 0:01:59]} 18... Kd7 {[%clk 0:01:10.6]} 19. gxh4 {[%clk 0:01:46.2]}
19... fxe4 {[%clk 0:01:10.6]} 20. Rxe4 {[%clk 0:01:42.6]} 20... Nd6 {[%clk
0:01:02.3]} 21. Re6 {[%clk 0:01:42.3]} 1-0

[Event "*** Titled Tuesday Blitz"]
[Site "Chess.com"]
[Date "2018.11.06"]
[Round "5"]
[White "AttackSparrow"]
[Black "abubakrtagelsir"]
[Result "0-1"]
[WhiteElo "2189"]
[BlackElo "2368"]
[TimeControl "180+2"]
[EndTime "14:04:00 PST"]
[Termination "abubakrtagelsir won by resignation"]

1. d4 {[%clk 0:03:01.9]} 1... d5 {[%clk 0:03:00.4]} 2. c4 {[%clk 0:03:03.1]}
2... c6 {[%clk 0:03:01.3]} 3. Nf3 {[%clk 0:03:03.9]} 3... Nf6 {[%clk 0:03:02]}
4. g3 {[%clk 0:03:04.3]} 4... h6 {[%clk 0:02:57.8]} 5. Bg2 {[%clk 0:03:04.6]}
5... Bf5 {[%clk 0:02:57.2]} 6. O-O {[%clk 0:03:04.9]} 6... e6 {[%clk 0:02:57.6]}
7. b3 {[%clk 0:03:02.7]} 7... Be7 {[%clk 0:02:57.7]} 8. Bb2 {[%clk 0:03:02.9]}
8... O-O {[%clk 0:02:57.9]} 9. Nc3 {[%clk 0:03:02.7]} 9... Nbd7 {[%clk 0:02:58]}
10. Re1 {[%clk 0:03:02]} 10... Ne4 {[%clk 0:02:56.6]} 11. Nxe4 {[%clk
0:02:59.3]} 11... Bxe4 {[%clk 0:02:56.1]} 12. Qd2 {[%clk 0:02:55]} 12... a5
{[%clk 0:02:54.9]} 13. a3 {[%clk 0:02:55]} 13... Qb6 {[%clk 0:02:54.1]} 14. Qc3
{[%clk 0:02:55]} 14... Nf6 {[%clk 0:02:50.8]} 15. Rac1 {[%clk 0:02:50]} 15...
Rfd8 {[%clk 0:02:42.5]} 16. Nd2 {[%clk 0:02:50.1]} 16... Bxg2 {[%clk 0:02:41.7]}
17. Kxg2 {[%clk 0:02:51]} 17... Rd7 {[%clk 0:02:36.5]} 18. f3 {[%clk 0:02:50.8]}
18... Rad8 {[%clk 0:02:30.4]} 19. e4 {[%clk 0:02:50]} 19... dxe4 {[%clk
0:02:29.2]} 20. Nxe4 {[%clk 0:02:43.9]} 20... Rxd4 {[%clk 0:02:25.8]} 21. Qe3
{[%clk 0:02:28.1]} 21... Rd2+ {[%clk 0:02:06.1]} 22. Nxd2 {[%clk 0:01:59.8]}
22... Qxe3 {[%clk 0:02:04.9]} 23. Rxe3 {[%clk 0:02:00.5]} 23... Rxd2+ {[%clk
0:02:03.7]} 24. Kh3 {[%clk 0:01:58.4]} 24... Rxb2 {[%clk 0:02:03.5]} 25. Rd1
{[%clk 0:01:58.9]} 25... Bxa3 {[%clk 0:02:00.5]} 26. Rd8+ {[%clk 0:01:57.8]}
26... Kh7 {[%clk 0:02:00]} 27. Rb8 {[%clk 0:01:59.3]} 27... Bc5 {[%clk
0:01:55.9]} 28. Rd3 {[%clk 0:01:56.8]} 28... b6 {[%clk 0:01:53.2]} 29. Rb7
{[%clk 0:01:49.3]} 29... Bg1 {[%clk 0:01:52.6]} 30. g4 {[%clk 0:01:44.4]} 30...
Kg6 {[%clk 0:01:39.4]} 31. Kg3 {[%clk 0:01:32.6]} 31... Bxh2+ {[%clk 0:01:38.3]}
32. Kh3 {[%clk 0:01:33]} 32... Bf4 {[%clk 0:01:37.8]} 0-1

[Event "*** Titled Tuesday Blitz"]
[Site "Chess.com"]
[Date "2018.11.06"]
[Round "5"]
[White "PaulfromSPb"]
[Black "GukeshDommaraju"]
[Result "0-1"]
[WhiteElo "2520"]
[BlackElo "2673"]
[TimeControl "180+2"]
[EndTime "14:04:11 PST"]
[Termination "GukeshDommaraju won by resignation"]

1. e4 {[%clk 0:03:01.9]} 1... c6 {[%clk 0:03:00]} 2. d4 {[%clk 0:02:58.2]} 2...
d5 {[%clk 0:02:58.4]} 3. Nd2 {[%clk 0:02:58.8]} 3... dxe4 {[%clk 0:02:58.6]} 4.
Nxe4 {[%clk 0:02:59.9]} 4... Nf6 {[%clk 0:02:59.6]} 5. Nxf6+ {[%clk 0:03:00.5]}
5... exf6 {[%clk 0:03:00.8]} 6. c3 {[%clk 0:03:01.5]} 6... Bd6 {[%clk
0:03:01.2]} 7. Bd3 {[%clk 0:03:02.2]} 7... O-O {[%clk 0:03:02.1]} 8. Qc2 {[%clk
0:03:02.1]} 8... Re8+ {[%clk 0:03:03.2]} 9. Ne2 {[%clk 0:03:03.1]} 9... f5
{[%clk 0:03:04.6]} 10. O-O {[%clk 0:03:02.8]} 10... g6 {[%clk 0:03:04.1]} 11.
Ng3 {[%clk 0:03:00.9]} 11... Nd7 {[%clk 0:03:00.9]} 12. Bd2 {[%clk 0:03:01.3]}
12... Nf6 {[%clk 0:03:00.6]} 13. Rfe1 {[%clk 0:03:02]} 13... Be6 {[%clk
0:03:00.9]} 14. b3 {[%clk 0:02:56.9]} 14... Ng4 {[%clk 0:03:01]} 15. Be2 {[%clk
0:02:04.7]} 15... Qh4 {[%clk 0:02:37.3]} 16. Bxg4 {[%clk 0:02:05.1]} 16... Qxg4
{[%clk 0:02:37.1]} 17. h3 {[%clk 0:01:51.7]} 17... Qh4 {[%clk 0:02:37.5]} 18.
Nf1 {[%clk 0:01:49.5]} 18... Bd5 {[%clk 0:02:23.1]} 19. f3 {[%clk 0:01:18.5]}
19... c5 {[%clk 0:01:53.5]} 20. Be3 {[%clk 0:01:14]} 20... cxd4 {[%clk 0:01:52]}
21. Bxd4 {[%clk 0:01:11.9]} 21... Rxe1 {[%clk 0:01:51.5]} 22. Bf2 {[%clk
0:01:08.2]} 22... Rxf1+ {[%clk 0:01:41.2]} 23. Kxf1 {[%clk 0:01:09.1]} 23... Qf6
{[%clk 0:01:38.6]} 24. Rd1 {[%clk 0:01:09]} 24... Bc6 {[%clk 0:01:39.3]} 25. Bd4
{[%clk 0:01:03.5]} 25... Be5 {[%clk 0:01:40]} 26. Bf2 {[%clk 0:01:01]} 26...
Bxc3 {[%clk 0:01:38.1]} 27. f4 {[%clk 0:01:01.1]} 27... Be4 {[%clk 0:01:35.9]}
28. Qe2 {[%clk 0:01:01.5]} 28... Rd8 {[%clk 0:01:33.7]} 29. Rc1 {[%clk
0:01:01.3]} 29... Bd3 {[%clk 0:01:33.4]} 0-1

[Event "*** Titled Tuesday Blitz"]
[Site "Chess.com"]
[Date "2018.11.06"]
[Round "5"]
[White "savinspm"]
[Black "Karina_Oparina"]
[Result "0-1"]
[WhiteElo "2072"]
[BlackElo "2190"]
[TimeControl "180+2"]
[EndTime "14:04:14 PST"]
[Termination "Karina_Oparina won by resignation"]

1. e4 {[%clk 0:03:01.9]} 1... c6 {[%clk 0:03:00.6]} 2. d4 {[%clk 0:03:02.4]}
2... d5 {[%clk 0:03:01.5]} 3. e5 {[%clk 0:03:02.9]} 3... Bf5 {[%clk 0:03:02.1]}
4. Bd3 {[%clk 0:03:04.2]} 4... Bxd3 {[%clk 0:03:02.6]} 5. Qxd3 {[%clk
0:03:06.1]} 5... e6 {[%clk 0:03:03.7]} 6. f4 {[%clk 0:03:07.5]} 6... Ne7 {[%clk
0:03:02.8]} 7. Nf3 {[%clk 0:03:08.6]} 7... Nd7 {[%clk 0:03:02.9]} 8. c3 {[%clk
0:03:09.9]} 8... Qc7 {[%clk 0:03:01.5]} 9. Be3 {[%clk 0:03:10.1]} 9... c5 {[%clk
0:02:59.7]} 10. O-O {[%clk 0:03:09.4]} 10... Nc6 {[%clk 0:02:59.7]} 11. a3
{[%clk 0:03:06.8]} 11... c4 {[%clk 0:02:43]} 12. Qc2 {[%clk 0:03:07.5]} 12... g6
{[%clk 0:02:43]} 13. Nbd2 {[%clk 0:03:07.7]} 13... Be7 {[%clk 0:02:35.4]} 14.
Kh1 {[%clk 0:03:07.8]} 14... O-O-O {[%clk 0:02:21.8]} 15. b3 {[%clk 0:03:05.8]}
15... b5 {[%clk 0:02:17.4]} 16. bxc4 {[%clk 0:03:06.2]} 16... bxc4 {[%clk
0:02:17.5]} 17. Rfb1 {[%clk 0:03:05.3]} 17... Nb6 {[%clk 0:02:14]} 18. a4 {[%clk
0:03:03.3]} 18... Kd7 {[%clk 0:01:43.2]} 19. a5 {[%clk 0:03:03.7]} 19... Na8
{[%clk 0:01:39.5]} 20. Qa4 {[%clk 0:03:02]} 20... Rb8 {[%clk 0:01:37.4]} 21.
Rxb8 {[%clk 0:02:50.6]} 21... Rxb8 {[%clk 0:01:37.4]} 22. Ng5 {[%clk 0:02:47.3]}
22... Bxg5 {[%clk 0:01:28.3]} 23. fxg5 {[%clk 0:02:48.5]} 23... Ke8 {[%clk
0:01:27.8]} 24. Nb1 {[%clk 0:02:23.5]} 24... a6 {[%clk 0:01:20.6]} 25. Na3
{[%clk 0:02:20.2]} 25... Rb3 {[%clk 0:01:12.3]} 26. Bd2 {[%clk 0:02:17.7]} 26...
Qb7 {[%clk 0:01:04.2]} 27. h3 {[%clk 0:02:17.6]} 27... Nc7 {[%clk 0:01:00.2]}
28. Nc2 {[%clk 0:02:17.5]} 28... Qb5 {[%clk 0:00:57.5]} 29. Qxb5 {[%clk
0:02:06]} 29... Nxb5 {[%clk 0:00:57.5]} 30. Kh2 {[%clk 0:02:01.5]} 30... Rb2
{[%clk 0:00:49.5]} 31. Rc1 {[%clk 0:01:57.6]} 31... Nxa5 {[%clk 0:00:50.2]} 32.
Be1 {[%clk 0:01:55]} 32... Nb3 {[%clk 0:00:48.5]} 0-1

[Event "*** Titled Tuesday Blitz"]
[Site "Chess.com"]
[Date "2018.11.06"]
[Round "5"]
[White "dragosceres"]
[Black "Mbneu"]
[Result "1-0"]
[WhiteElo "2410"]
[BlackElo "2278"]
[TimeControl "180+2"]
[EndTime "14:04:16 PST"]
[Termination "dragosceres won by resignation"]

1. e4 {[%clk 0:03:01.9]} 1... e5 {[%clk 0:02:56.9]} 2. Nf3 {[%clk 0:03:02.9]}
2... Nc6 {[%clk 0:02:57.1]} 3. Bc4 {[%clk 0:03:01.8]} 3... Nf6 {[%clk 0:02:57]}
4. d3 {[%clk 0:03:02.6]} 4... Bc5 {[%clk 0:02:53.2]} 5. O-O {[%clk 0:03:02.9]}
5... d6 {[%clk 0:02:53.8]} 6. c3 {[%clk 0:03:03.7]} 6... Bg4 {[%clk 0:02:42.7]}
7. Nbd2 {[%clk 0:03:01.8]} 7... Qd7 {[%clk 0:02:40.4]} 8. Re1 {[%clk 0:03:02.5]}
8... a6 {[%clk 0:02:37.6]} 9. Nf1 {[%clk 0:03:01.9]} 9... h6 {[%clk 0:02:31.4]}
10. Ng3 {[%clk 0:03:00]} 10... O-O-O {[%clk 0:02:30]} 11. h3 {[%clk 0:02:58.1]}
11... Bh5 {[%clk 0:02:25.1]} 12. Nxh5 {[%clk 0:02:57.4]} 12... Nxh5 {[%clk
0:02:25.4]} 13. b4 {[%clk 0:02:58.2]} 13... Bb6 {[%clk 0:02:24.9]} 14. a4 {[%clk
0:02:56.9]} 14... Nf4 {[%clk 0:02:14.6]} 15. Bxf4 {[%clk 0:02:55]} 15... exf4
{[%clk 0:02:14.9]} 16. b5 {[%clk 0:02:56.2]} 16... axb5 {[%clk 0:02:06.6]} 17.
axb5 {[%clk 0:02:57]} 17... Na7 {[%clk 0:02:07.6]} 18. Ra4 {[%clk 0:02:25.4]}
18... g5 {[%clk 0:02:07.4]} 19. Qa1 {[%clk 0:02:23.8]} 19... g4 {[%clk
0:02:07.8]} 20. Rxa7 {[%clk 0:02:21.4]} 20... Bxa7 {[%clk 0:02:01.4]} 21. Qxa7
{[%clk 0:02:21.9]} 21... Qe7 {[%clk 0:01:56.1]} 22. hxg4 {[%clk 0:02:19.2]}
22... Rhg8 {[%clk 0:01:46.2]} 23. Qa8+ {[%clk 0:02:16.5]} 23... Kd7 {[%clk
0:01:45.5]} 24. Qxb7 {[%clk 0:02:18.4]} 24... Ke8 {[%clk 0:01:42.8]} 25. e5
{[%clk 0:02:07.5]} 25... Kf8 {[%clk 0:01:31.3]} 26. exd6 {[%clk 0:02:04.9]}
26... Qxd6 {[%clk 0:01:31.9]} 27. Qe4 {[%clk 0:02:02.3]} 27... Rxg4 {[%clk
0:01:26.6]} 28. Qh7 {[%clk 0:02:02.9]} 28... Qg6 {[%clk 0:01:20.6]} 29. Qh8+
{[%clk 0:01:59.1]} 29... Qg8 {[%clk 0:01:20.8]} 30. Qxh6+ {[%clk 0:02:00]} 30...
Qg7 {[%clk 0:01:20.3]} 31. Qxg7+ {[%clk 0:02:00.8]} 31... Rxg7 {[%clk
0:01:16.7]} 32. Re4 {[%clk 0:01:59.8]} 32... Rd6 {[%clk 0:01:11.4]} 33. Rxf4
{[%clk 0:01:59.6]} 33... Rdg6 {[%clk 0:01:11.7]} 34. g3 {[%clk 0:02:00.7]} 34...
Rh6 {[%clk 0:01:04.2]} 35. Ne5 {[%clk 0:02:00.1]} 35... Rhh7 {[%clk 0:01:03.2]}
36. Nxf7 {[%clk 0:01:52.5]} 1-0

[Event "*** Titled Tuesday Blitz"]
[Site "Chess.com"]
[Date "2018.11.06"]
[Round "5"]
[White "HaryKane"]
[Black "MFBerna"]
[Result "0-1"]
[WhiteElo "2559"]
[BlackElo "2372"]
[TimeControl "180+2"]
[EndTime "14:04:20 PST"]
[Termination "MFBerna won by resignation"]

1. e4 {[%clk 0:02:23.9]} 1... c6 {[%clk 0:02:59.9]} 2. d4 {[%clk 0:02:24.5]}
2... d5 {[%clk 0:03:01.8]} 3. Nc3 {[%clk 0:02:23]} 3... dxe4 {[%clk 0:03:02.9]}
4. Nxe4 {[%clk 0:02:24.9]} 4... Nf6 {[%clk 0:03:04.5]} 5. Nxf6+ {[%clk
0:02:25.9]} 5... exf6 {[%clk 0:03:06.4]} 6. Be3 {[%clk 0:02:25.5]} 6... Bd6
{[%clk 0:03:07.7]} 7. c3 {[%clk 0:02:23.1]} 7... O-O {[%clk 0:03:08.6]} 8. Bd3
{[%clk 0:02:23.8]} 8... Re8 {[%clk 0:03:09]} 9. Qc2 {[%clk 0:02:22.8]} 9... h6
{[%clk 0:03:09.5]} 10. Ne2 {[%clk 0:02:22]} 10... Qc7 {[%clk 0:03:09.7]} 11.
O-O-O {[%clk 0:02:19.7]} 11... b5 {[%clk 0:03:09]} 12. Kb1 {[%clk 0:02:13.3]}
12... Nd7 {[%clk 0:03:07.9]} 13. g4 {[%clk 0:02:10.7]} 13... Nb6 {[%clk
0:03:08.5]} 14. g5 {[%clk 0:02:08.3]} 14... fxg5 {[%clk 0:03:05.8]} 15. h4
{[%clk 0:02:09.3]} 15... g4 {[%clk 0:03:02.8]} 16. Rhg1 {[%clk 0:02:06.2]} 16...
Nc4 {[%clk 0:02:58.4]} 17. Bxc4 {[%clk 0:02:02.9]} 17... bxc4 {[%clk 0:02:59.4]}
18. Qd2 {[%clk 0:01:59.4]} 18... Bf5+ {[%clk 0:02:58.4]} 19. Ka1 {[%clk
0:02:00.4]} 19... Rab8 {[%clk 0:02:30.5]} 20. Nf4 {[%clk 0:01:45.1]} 20... Rb5
{[%clk 0:02:14.4]} 21. d5 {[%clk 0:01:26.7]} 21... Qa5 {[%clk 0:01:59.3]} 22. b3
{[%clk 0:00:29.2]} 22... cxb3 {[%clk 0:01:58.9]} 23. Qb2 {[%clk 0:00:21.9]}
23... Ba3 {[%clk 0:01:43.6]} 0-1

[Event "*** Titled Tuesday Blitz"]
[Site "Chess.com"]
[Date "2018.11.06"]
[Round "5"]
[White "FearNoEvil12"]
[Black "Blagorod"]
[Result "1-0"]
[WhiteElo "1967"]
[BlackElo "2079"]
[TimeControl "180+2"]
[EndTime "14:04:41 PST"]
[Termination "FearNoEvil12 won by resignation"]

1. e4 {[%clk 0:03:01.9]} 1... e5 {[%clk 0:03:00.8]} 2. d4 {[%clk 0:03:01.8]}
2... exd4 {[%clk 0:03:00.5]} 3. Bc4 {[%clk 0:03:03.1]} 3... Nc6 {[%clk
0:02:52.9]} 4. Nf3 {[%clk 0:03:04.3]} 4... d6 {[%clk 0:02:38.5]} 5. Nxd4 {[%clk
0:03:03.8]} 5... Nxd4 {[%clk 0:02:35.9]} 6. Qxd4 {[%clk 0:03:03.8]} 6... Qf6
{[%clk 0:02:33.7]} 7. Qd3 {[%clk 0:03:03.5]} 7... Be6 {[%clk 0:02:27.1]} 8. Nc3
{[%clk 0:03:03.4]} 8... O-O-O {[%clk 0:01:55]} 9. Be3 {[%clk 0:03:01.4]} 9...
Kb8 {[%clk 0:01:52.6]} 10. Nb5 {[%clk 0:02:40.2]} 10... a6 {[%clk 0:01:05.4]}
11. Ba7+ {[%clk 0:02:33.7]} 11... Kc8 {[%clk 0:01:03.7]} 12. Bd4 {[%clk
0:02:31.3]} 12... Qe7 {[%clk 0:01:00]} 13. Na7+ {[%clk 0:02:27.4]} 13... Kb8
{[%clk 0:01:00.3]} 14. Bxa6 {[%clk 0:02:22.3]} 14... Bd7 {[%clk 0:00:55.9]} 15.
O-O-O {[%clk 0:02:08.6]} 15... c5 {[%clk 0:00:50.9]} 16. Qb3 {[%clk 0:02:04.6]}
16... Be8 {[%clk 0:00:41.3]} 17. Bxc5 {[%clk 0:01:52.2]} 17... Qc7 {[%clk
0:00:21.5]} 18. Bb6 {[%clk 0:01:51.7]} 18... Qd7 {[%clk 0:00:15.4]} 19. Bb5
{[%clk 0:01:38.3]} 19... Qg4 {[%clk 0:00:08.4]} 20. Bxd8 {[%clk 0:01:17.9]}
20... Bxb5 {[%clk 0:00:09]} 21. Nxb5 {[%clk 0:01:17]} 1-0

[Event "*** Titled Tuesday Blitz"]
[Site "Chess.com"]
[Date "2018.11.06"]
[Round "5"]
[White "MITerryble"]
[Black "chessdjw"]
[Result "1-0"]
[WhiteElo "2761"]
[BlackElo "2595"]
[TimeControl "180+2"]
[EndTime "14:04:48 PST"]
[Termination "MITerryble won by checkmate"]

1. d4 {[%clk 0:03:01.9]} 1... Nf6 {[%clk 0:03:01]} 2. Bg5 {[%clk 0:03:02.1]}
2... e6 {[%clk 0:03:00.8]} 3. e4 {[%clk 0:03:02.2]} 3... h6 {[%clk 0:03:01.9]}
4. Bxf6 {[%clk 0:03:02.2]} 4... Qxf6 {[%clk 0:03:03.8]} 5. c3 {[%clk 0:03:03.1]}
5... d6 {[%clk 0:03:04.9]} 6. Bd3 {[%clk 0:03:04.2]} 6... Nd7 {[%clk 0:03:02.4]}
7. Ne2 {[%clk 0:03:04.8]} 7... g6 {[%clk 0:03:01.6]} 8. O-O {[%clk 0:03:05.6]}
8... Bg7 {[%clk 0:03:02.7]} 9. f4 {[%clk 0:03:06.1]} 9... c5 {[%clk 0:02:49.8]}
10. Nd2 {[%clk 0:03:04.1]} 10... cxd4 {[%clk 0:02:49.7]} 11. cxd4 {[%clk
0:03:06]} 11... d5 {[%clk 0:02:48]} 12. e5 {[%clk 0:03:03.7]} 12... Qe7 {[%clk
0:02:47.3]} 13. Rc1 {[%clk 0:02:59.8]} 13... O-O {[%clk 0:02:43.6]} 14. Rc7
{[%clk 0:02:56.1]} 14... Qd8 {[%clk 0:02:38.9]} 15. Qc2 {[%clk 0:02:51.1]} 15...
Nb8 {[%clk 0:02:40.1]} 16. Rc3 {[%clk 0:02:47.5]} 16... Nc6 {[%clk 0:02:40.8]}
17. a3 {[%clk 0:02:47.7]} 17... Bd7 {[%clk 0:02:40.6]} 18. Nb3 {[%clk
0:02:47.2]} 18... Qb6 {[%clk 0:02:20.9]} 19. Nc5 {[%clk 0:02:44.8]} 19... Bc8
{[%clk 0:01:56.1]} 20. b4 {[%clk 0:02:17.3]} 20... a6 {[%clk 0:01:55.2]} 21. Kh1
{[%clk 0:01:58.2]} 21... Rd8 {[%clk 0:01:54.8]} 22. g4 {[%clk 0:01:48.4]} 22...
Ne7 {[%clk 0:01:39.1]} 23. Ng3 {[%clk 0:01:47.6]} 23... Bd7 {[%clk 0:01:37.4]}
24. f5 {[%clk 0:01:44.7]} 24... exf5 {[%clk 0:01:38]} 25. gxf5 {[%clk
0:01:46.1]} 25... Bxf5 {[%clk 0:01:38]} 26. Bxf5 {[%clk 0:01:45.8]} 26... Nxf5
{[%clk 0:01:38.5]} 27. Nxf5 {[%clk 0:01:47.1]} 27... gxf5 {[%clk 0:01:39.8]} 28.
Rg3 {[%clk 0:01:44.7]} 28... Kh8 {[%clk 0:01:31.8]} 29. Qxf5 {[%clk 0:01:45.5]}
29... Rg8 {[%clk 0:01:29.7]} 30. Rfg1 {[%clk 0:01:45.5]} 30... Qc7 {[%clk
0:01:06.5]} 31. Nd7 {[%clk 0:01:35.1]} 31... Qc4 {[%clk 0:00:41.4]} 32. Nf6
{[%clk 0:01:33.5]} 32... Qxd4 {[%clk 0:00:36.4]} 33. Qh7# {[%clk 0:01:34]} 1-0

[Event "*** Titled Tuesday Blitz"]
[Site "Chess.com"]
[Date "2018.11.06"]
[Round "5"]
[White "SimonKnightRivendell"]
[Black "colegiodemadrid"]
[Result "0-1"]
[WhiteElo "1966"]
[BlackElo "2215"]
[TimeControl "180+2"]
[EndTime "14:04:48 PST"]
[Termination "colegiodemadrid won by resignation"]

1. d4 {[%clk 0:03:01.9]} 1... Nf6 {[%clk 0:02:59.6]} 2. c4 {[%clk 0:03:02.2]}
2... c5 {[%clk 0:03:00.6]} 3. d5 {[%clk 0:03:02.2]} 3... b5 {[%clk 0:03:01.9]}
4. cxb5 {[%clk 0:02:58.4]} 4... a6 {[%clk 0:03:02.9]} 5. bxa6 {[%clk 0:02:58.2]}
5... g6 {[%clk 0:03:02.8]} 6. Nc3 {[%clk 0:02:55.7]} 6... Bg7 {[%clk 0:03:02]}
7. e4 {[%clk 0:02:55.1]} 7... O-O {[%clk 0:03:02.3]} 8. Nf3 {[%clk 0:02:54.9]}
8... Qa5 {[%clk 0:03:02.2]} 9. Bd3 {[%clk 0:02:53.9]} 9... Nxd5 {[%clk
0:02:58.8]} 10. exd5 {[%clk 0:02:49]} 10... Bxc3+ {[%clk 0:02:59.8]} 11. Bd2
{[%clk 0:02:49.9]} 11... Bxd2+ {[%clk 0:02:59.3]} 12. Qxd2 {[%clk 0:02:50.8]}
12... Qxd2+ {[%clk 0:03:00]} 13. Nxd2 {[%clk 0:02:50]} 13... Bxa6 {[%clk
0:03:01.4]} 14. Bxa6 {[%clk 0:02:47.6]} 14... Nxa6 {[%clk 0:03:02.8]} 15. O-O-O
{[%clk 0:02:35.2]} 15... Nb4 {[%clk 0:02:59.1]} 16. a3 {[%clk 0:02:34.9]} 16...
Nd3+ {[%clk 0:02:58.1]} 17. Kb1 {[%clk 0:02:33.6]} 17... Nxf2 {[%clk 0:02:57.3]}
18. Nc4 {[%clk 0:02:21]} 18... Nxh1 {[%clk 0:02:56.9]} 19. Rxh1 {[%clk
0:02:21.2]} 19... d6 {[%clk 0:02:58.1]} 20. Re1 {[%clk 0:02:22]} 20... Ra7
{[%clk 0:02:57.4]} 21. Kc2 {[%clk 0:02:21.9]} 21... Kg7 {[%clk 0:02:57.6]} 22.
b3 {[%clk 0:02:20.4]} 22... Rb8 {[%clk 0:02:57.9]} 23. Re3 {[%clk 0:02:17.5]}
23... h6 {[%clk 0:02:56.7]} 24. Rf3 {[%clk 0:02:06]} 24... Rd8 {[%clk
0:02:43.8]} 25. Re3 {[%clk 0:02:02.4]} 25... Ra6 {[%clk 0:02:40.3]} 26. Kb2
{[%clk 0:01:59.7]} 26... Re8 {[%clk 0:02:39.6]} 27. Kc2 {[%clk 0:01:58.8]} 27...
e5 {[%clk 0:02:39.6]} 28. g4 {[%clk 0:01:49.4]} 28... f5 {[%clk 0:02:40.1]} 29.
gxf5 {[%clk 0:01:50.1]} 29... gxf5 {[%clk 0:02:40.9]} 30. Rg3+ {[%clk
0:01:50.8]} 30... Kf6 {[%clk 0:02:42.3]} 31. Rh3 {[%clk 0:01:50.7]} 31... Rh8
{[%clk 0:02:40.5]} 32. Kb2 {[%clk 0:01:29.6]} 32... h5 {[%clk 0:02:41.4]} 33.
Rg3 {[%clk 0:01:26.9]} 33... h4 {[%clk 0:02:41.7]} 34. Rg2 {[%clk 0:01:22.5]}
34... f4 {[%clk 0:02:42.6]} 35. Nd2 {[%clk 0:01:19.8]} 35... Kf5 {[%clk
0:02:41.3]} 36. Rg7 {[%clk 0:01:19.2]} 36... Rh6 {[%clk 0:02:35.8]} 37. h3
{[%clk 0:01:17.8]} 37... e4 {[%clk 0:02:29.4]} 38. Rf7+ {[%clk 0:01:13.7]} 38...
Rf6 {[%clk 0:02:30.7]} 39. Rh7 {[%clk 0:01:13.5]} 39... e3 {[%clk 0:02:30.7]}
40. Nf3 {[%clk 0:01:09]} 40... Ke4 {[%clk 0:02:31.9]} 41. Nxh4 {[%clk
0:01:03.1]} 41... f3 {[%clk 0:02:32.8]} 42. Kc3 {[%clk 0:01:01.1]} 42... f2
{[%clk 0:02:32.3]} 43. Re7+ {[%clk 0:01:00.6]} 43... Kxd5 {[%clk 0:02:32.6]} 44.
Ng2 {[%clk 0:00:59.1]} 44... Rf3 {[%clk 0:02:28.5]} 0-1